bitfinex/quotes_SOLUSD_20250531
["timestamp","ask_amount","ask_price","bid_price","bid_amount"]
[1748655193900,42.42022321,155.58,155.53,42.42022321]
[1748655194285,11.9,155.61,155.56,42.42022321]
[1748655194467,11.9,155.61,155.54,42.42022321]
[1748655194468,42.42022321,155.59,155.54,42.42022321]
[1748655194667,42.42022321,155.6,155.55,42.42022321]
[1748655195001,11.9,155.61,155.59,42.42022321]
[1748655195183,11.9,155.61,155.59,6.42698255]
[1748655195374,92.54,155.65,155.6,42.42022321]
[1748655195569,92.54,155.65,155.61,42.42022321]
[1748655196598,141.38502139,155.65,155.6,42.42022321]
[1748655196780,141.38502139,155.65,155.57,8.08939807]
[1748655197096,141.38502139,155.65,155.6,42.42022321]
[1748655198081,98.96479818,155.65,155.6,42.42022321]
[1748655198695,141.38502139,155.65,155.6,42.42022321]
[1748655199070,6.42479818,155.65,155.6,42.42022321]
[1748655199274,0.28432314,155.64,155.59,42.42022321]
[1748655199483,42.42022321,155.61,155.56,42.42022321]
[1748655199689,42.56238478,155.62,155.56,42.42022321]
[1748655199889,42.56238478,155.62,155.57,42.42022321]
[1748655200278,0.14216157,155.62,155.57,42.42022321]
[1748655200681,42.56238478,155.62,155.57,42.42022321]
[1748655200897,6.56811225,155.62,155.57,42.42022321]
[1748655201575,11.9,155.66,155.61,42.42022321]
[1748655201779,104.54,155.72,155.65,42.42022321]
[1748655202003,104.54,155.72,155.63,26.0]
[1748655202004,104.54,155.72,155.69,42.42022321]
[1748655202174,104.54,155.72,155.63,26.0]
[1748655202175,104.54,155.72,155.7,42.42022321]
[1748655202373,104.54,155.72,155.68,42.42022321]
[1748655202574,104.54,155.72,155.64,42.3]
[1748655202575,104.54,155.72,155.69,42.42022321]
[1748655202783,104.54,155.72,155.68,42.42022321]
[1748655203198,104.54,155.72,155.64,48.72507408]
[1748655203398,104.54,155.72,155.68,42.42022321]
[1748655203599,42.42022321,155.69,155.58,23.875107]
[1748655203788,42.70454635,155.68,155.62,68.42022321]
[1748655204000,42.70454635,155.68,155.63,42.42022321]
[1748655204389,84.70022321,155.69,155.63,42.42022321]
[1748655204689,42.70454635,155.68,155.63,42.42022321]
[1748655204876,42.70454635,155.65,155.6,42.42022321]
[1748655205297,42.70454635,155.65,155.58,43.92812321]
[1748655205298,0.14216157,155.63,155.58,43.92812321]
[1748655205484,42.56238478,155.63,155.58,43.92812321]
[1748655205799,42.56238478,155.63,155.58,1.5079]
[1748655206115,0.14216157,155.62,155.58,1.5079]
[1748655206321,0.14216157,155.61,155.57,42.42022321]
[1748655206519,0.28432314,155.61,155.53,14.29987086]
[1748655206820,6.42673521,155.6,155.56,42.42022321]
[1748655207504,0.14216157,155.59,155.53,1.5233]
[1748655207694,42.56238478,155.59,155.54,42.42022321]
[1748655207900,0.14216157,155.56,155.49,9.48374847]
[1748655208095,0.14216157,155.57,155.53,42.42022321]
[1748655208326,0.14216157,155.56,155.49,32.43118136]
[1748655208526,0.14216157,155.57,155.53,42.42022321]
[1748655208703,0.14216157,155.57,155.49,32.43118136]
[1748655208904,0.14216157,155.57,155.53,42.42022321]
[1748655209100,54.42022321,155.6,155.55,42.42022321]
[1748655209304,54.42022321,155.6,155.57,42.42022321]
[1748655209305,12.0,155.6,155.57,42.42022321]
[1748655209606,42.42022321,155.58,155.53,42.42022321]
[1748655209808,0.28432314,155.57,155.52,42.42022321]
[1748655210046,42.70454635,155.57,155.52,42.42022321]
[1748655210225,42.70454635,155.57,155.48,1.5233]
[1748655210226,42.70454635,155.55,155.48,1.5233]
[1748655210432,0.14216157,155.54,155.5,42.42022321]
[1748655210723,0.28432314,155.54,155.49,42.42022321]
[1748655210898,6.42962772,155.53,155.49,42.42022321]
[1748655211426,6.57143764,155.54,155.49,42.42022321]
[1748655211730,0.28432314,155.54,155.49,42.42022321]
[1748655212035,0.14216157,155.49,155.44,42.42022321]
[1748655212205,42.56238478,155.49,155.44,42.42022321]
[1748655212525,0.14216157,155.49,155.45,42.42022321]
[1748655212900,12.0,155.5,155.48,42.42022321]
[1748655213104,54.42022321,155.5,155.44,26.0]
[1748655213318,0.14216157,155.49,155.46,42.42022321]
[1748655213525,0.14216157,155.49,155.45,42.42022321]
[1748655214125,12.0,155.5,155.47,42.42022321]
[1748655214334,12.0,155.5,155.48,42.42022321]
[1748655214646,12.0,155.5,155.49,42.42022321]
[1748655214819,68.48,155.55,155.49,48.85132645]
[1748655214820,54.42022321,155.55,155.49,48.85132645]
[1748655215014,18.42897345,155.55,155.47,26.0]
[1748655215217,0.28432314,155.54,155.5,42.42022321]
[1748655215819,54.42022321,155.55,155.5,42.42022321]
[1748655216027,12.0,155.55,155.53,42.42022321]
[1748655216225,12.0,155.55,155.54,42.42022321]
[1748655216431,12.0,155.55,155.51,1.5817]
[1748655216626,12.14216157,155.55,155.52,42.42022321]
[1748655216828,12.0,155.55,155.51,44.00192321]
[1748655217147,0.14216157,155.54,155.51,1.5817]
[1748655217351,0.14216157,155.54,155.48,68.5]
[1748655217352,42.70454635,155.54,155.49,42.42022321]
[1748655217642,42.70454635,155.54,155.48,68.5]
[1748655217643,0.14216157,155.52,155.48,42.42022321]
[1748655217822,42.70454635,155.52,155.47,42.42022321]
[1748655218016,0.14216157,155.5,155.46,42.42022321]
[1748655218217,42.70454635,155.5,155.45,1.5817]
[1748655218416,0.14216157,155.48,155.45,1.5817]
[1748655218614,0.14216157,155.48,155.44,42.42022321]
[1748655218828,0.14216157,155.48,155.4,1.5817]
[1748655218829,42.42022321,155.45,155.4,1.5817]
[1748655219014,48.99578323,155.44,155.4,1.5817]
[1748655219226,48.99578323,155.44,155.35,49.174]
[1748655219227,42.56238478,155.42,155.35,6.574]
[1748655219427,42.42022321,155.41,155.36,42.42022321]
[1748655219860,12.0,155.43,155.4,42.42022321]
[1748655220166,0.28432314,155.4,155.34,50.43934168]
[1748655220319,42.42022321,155.39,155.34,44.00192321]
[1748655220516,0.14216157,155.38,155.34,44.00192321]
[1748655220744,42.56238478,155.38,155.34,1.5817]
[1748655221331,0.14216157,155.38,155.34,44.00192321]
[1748655221630,85.20238478,155.4,155.35,42.42022321]
[1748655221838,0.14216157,155.39,155.34,8.01918221]
[1748655222164,0.14216157,155.39,155.36,42.42022321]
[1748655222368,0.28432314,155.41,155.37,42.42022321]
[1748655222572,42.42022321,155.42,155.37,42.42022321]
[1748655222760,12.0,155.43,155.4,42.42022321]
[1748655222961,12.0,155.43,155.42,48.85440156]
[1748655223151,12.0,155.48,155.42,48.85440156]
[1748655223349,12.0,155.48,155.46,42.42022321]
[1748655223547,12.0,155.48,155.44,42.42022321]
[1748655223773,12.0,155.48,155.46,42.42022321]
[1748655224072,12.0,155.48,155.47,42.42022321]
[1748655224272,12.0,155.48,155.45,42.42022321]
[1748655225073,12.0,155.48,155.46,42.42022321]
[1748655225887,12.0,155.48,155.45,42.42022321]
[1748655226771,12.0,155.48,155.46,42.42022321]
[1748655226959,0.14216157,155.47,155.43,42.42022321]
[1748655227160,0.14216157,155.47,155.44,42.42022321]
[1748655227491,0.14216157,155.47,155.43,42.42022321]
[1748655227785,0.14216157,155.47,155.44,42.42022321]
[1748655228187,12.0,155.48,155.45,42.42022321]
[1748655229087,12.0,155.48,155.46,42.42022321]
[1748655229294,12.0,155.48,155.47,42.42022321]
[1748655229869,92.6,155.56,155.47,42.42022321]
[1748655230077,92.6,155.56,155.53,42.42022321]
[1748655230583,61.35419521,155.55,155.45,50.55631367]
[1748655230790,0.14216157,155.5,155.45,44.02362321]
[1748655230978,0.14216157,155.5,155.46,42.42022321]
[1748655231290,6.57309393,155.5,155.46,42.42022321]
[1748655231656,48.99331714,155.5,155.44,42.42022321]
[1748655231971,0.14216157,155.49,155.44,42.42022321]
[1748655232282,0.14216157,155.49,155.4,8.03836814]
[1748655232467,0.14216157,155.48,155.44,42.42022321]
[1748655232663,61.21203364,155.48,155.42,42.42022321]
[1748655232865,0.14216157,155.43,155.39,42.42022321]
[1748655233164,6.57593155,155.43,155.39,42.42022321]
[1748655233973,49.19593155,155.43,155.39,42.42022321]
[1748655234372,49.19593155,155.43,155.38,42.42022321]
[1748655234373,0.14216157,155.42,155.38,42.42022321]
[1748655235069,0.14216157,155.41,155.35,8.04043455]
[1748655235274,0.14216157,155.41,155.38,42.42022321]
[1748655235590,0.14216157,155.39,155.35,1.6034]
[1748655235767,0.14216157,155.36,155.3,1.5678]
[1748655235964,0.14216157,155.34,155.3,1.5678]
[1748655236163,0.14216157,155.34,155.27,6.44000584]
[1748655236164,42.42022321,155.32,155.27,42.42022321]
[1748655236367,12.1,155.33,155.24,8.00943875]
[1748655236368,42.56238478,155.31,155.26,42.42022321]
[1748655236690,42.42022321,155.3,155.25,42.42022321]
[1748655236896,42.72216157,155.31,155.27,42.42022321]
[1748655237390,85.14238478,155.31,155.25,42.42022321]
[1748655237598,85.14238478,155.31,155.24,8.00929829]
[1748655237887,85.14238478,155.31,155.26,42.42022321]
[1748655238187,0.14216157,155.29,155.24,8.00929829]
[1748655238494,0.14216157,155.29,155.25,42.42022321]
[1748655238673,0.14216157,155.27,155.18,6.2589]
[1748655238987,0.14216157,155.25,155.21,42.42022321]
[1748655239160,0.14216157,155.25,155.2,26.0]
[1748655239161,54.66,155.27,155.24,42.42022321]
[1748655239692,54.66,155.27,155.23,42.42022321]
[1748655239907,0.14216157,155.26,155.23,42.42022321]
[1748655240268,0.28432314,155.26,155.22,42.42022321]
[1748655240608,42.42022321,155.24,155.19,6.44371415]
[1748655240812,0.28432314,155.26,155.16,42.42022321]
[1748655240813,42.56238478,155.22,155.16,42.42022321]
[1748655240973,42.56238478,155.2,155.12,8.0262]
[1748655241169,42.56238478,155.2,155.15,42.42022321]
[1748655241691,0.14216157,155.18,155.14,0.75539969]
[1748655241894,42.54,155.19,155.16,42.42022321]
[1748655242098,42.54,155.19,155.14,7.2008954]
[1748655242277,42.54,155.19,155.15,42.42022321]
[1748655242485,42.54,155.19,155.14,7.2008954]
[1748655242784,12.1,155.21,155.18,42.42022321]
[1748655242975,0.14216157,155.2,155.16,42.42022321]
[1748655243175,42.42022321,155.17,155.14,0.75539969]
[1748655243510,42.56238478,155.15,155.08,49.76153472]
[1748655243674,42.42022321,155.13,155.08,49.76153472]
[1748655243872,97.06022321,155.14,155.09,42.42022321]
[1748655244289,42.42022321,155.11,155.08,0.8930468]
[1748655244469,0.14216157,155.1,155.08,0.8930468]
[1748655244669,42.42022321,155.12,155.08,0.8930468]
[1748655244881,42.56238478,155.11,155.08,0.8930468]
[1748655245279,0.14216157,155.11,155.08,0.8930468]
[1748655245886,42.56238478,155.11,155.08,0.8930468]
[1748655246081,0.14216157,155.11,155.08,0.8930468]
[1748655246997,42.56238478,155.13,155.08,43.31327001]
[1748655247197,12.1,155.14,155.12,42.42022321]
[1748655247368,12.1,155.14,155.13,42.42022321]
[1748655248199,12.12,155.19,155.13,42.42022321]
[1748655248377,12.12,155.19,155.18,42.42022321]
[1748655248583,12.12,155.19,155.15,26.0]
[1748655248786,12.12,155.19,155.16,42.42022321]
[1748655249284,12.12,155.19,155.17,42.42022321]
[1748655249682,12.12,155.19,155.18,42.42022321]
[1748655249907,54.54022321,155.19,155.11,6.44703758]
[1748655250096,0.14216157,155.16,155.11,6.44703758]
[1748655250299,0.14216157,155.16,155.1,1.5493]
[1748655250300,42.56238478,155.16,155.1,50.41690286]
[1748655250489,42.42022321,155.15,155.1,50.41690286]
[1748655250693,42.56238478,155.16,155.1,43.96952321]
[1748655250986,42.42022321,155.15,155.1,50.41684191]
[1748655251389,0.14216157,155.14,155.1,43.96952321]
[1748655251685,42.66216157,155.14,155.09,42.42022321]
[1748655251889,85.08238478,155.14,155.09,42.42022321]
[1748655252104,42.66216157,155.14,155.09,42.42022321]
[1748655252498,42.66216157,155.14,155.08,0.8930468]
[1748655252499,42.56238478,155.12,155.08,0.8930468]
[1748655253218,12.12,155.13,155.09,42.42022321]
[1748655253618,12.12,155.13,155.08,0.8930468]
[1748655253619,42.70454635,155.12,155.08,0.8930468]
[1748655253838,0.14216157,155.1,155.08,0.8930468]
[1748655254493,85.08238478,155.1,155.08,0.8930468]
[1748655254825,42.70454635,155.09,155.08,0.8930468]
[1748655255219,61.35419521,155.09,155.0,7.20760865]
[1748655255521,0.14216157,155.05,155.01,42.42022321]
[1748655255728,0.14216157,155.05,155.0,0.75608198]
[1748655255729,0.14216157,155.01,155.0,0.75608198]
[1748655255932,0.14216157,155.01,154.92,18.7422]
[1748655255933,42.70454635,155.01,154.96,42.42022321]
[1748655256107,0.28432314,154.99,154.93,1.5108]
[1748655256304,0.28432314,154.97,154.93,1.5108]
[1748655256531,42.70454635,154.94,154.86,1.5108]
[1748655256755,42.70454635,154.92,154.86,1.5108]
[1748655257025,42.56238478,154.89,154.84,42.42022321]
[1748655257224,0.14216157,154.91,154.88,42.42022321]
[1748655257425,10.0,155.04,154.86,26.0]
[1748655257426,12.1,154.93,154.9,42.42022321]
[1748655257616,0.14216157,154.92,154.83,22.605399]
[1748655257823,0.14216157,154.92,154.85,42.42022321]
[1748655257824,42.70454635,154.9,154.85,42.42022321]
[1748655258134,42.70454635,154.9,154.8,43.93102321]
[1748655258135,0.28432314,154.85,154.8,43.93102321]
[1748655258334,12.24216157,154.85,154.8,43.93102321]
[1748655258631,12.24216157,154.85,154.78,6.46044021]
[1748655258632,0.14216157,154.83,154.78,48.88100363]
[1748655258861,0.14216157,154.83,154.79,42.42022321]
[1748655259020,12.1,154.85,154.81,42.42022321]
[1748655259219,61.35419521,154.84,154.76,7.35431831]
[1748655259410,18.933972,154.84,154.78,42.42022321]
[1748655259718,0.28432314,154.81,154.76,7.3546584]
[1748655259919,0.28432314,154.81,154.76,43.31327001]
[1748655260133,0.28432314,154.81,154.77,42.42022321]
[1748655260426,0.28432314,154.81,154.76,49.77482358]
[1748655260427,42.70454635,154.81,154.76,49.77482358]
[1748655260633,42.70454635,154.81,154.76,0.8930468]
[1748655260843,42.72,154.82,154.76,0.8930468]
[1748655260844,42.70454635,154.77,154.76,0.8930468]
[1748655261038,55.12432314,154.77,154.76,0.8930468]
[1748655261208,54.84,154.77,154.76,0.8930468]
[1748655261409,123.54454635,154.77,154.76,0.8930468]
[1748655261605,122.6553957,154.77,154.76,0.8930468]
[1748655261910,28.64964886,154.73,154.45,12.5493468]
[1748655262111,0.28432314,154.64,154.53,6.47101299]
[1748655262306,26.0,154.6,154.45,2.5493468]
[1748655262576,36.0,154.6,154.45,2.5493468]
[1748655262751,26.0,154.59,154.45,2.5493468]
[1748655263066,0.28432314,154.59,154.46,22.65958823]
[1748655263239,0.28432314,154.54,154.45,2.5493468]
[1748655263562,0.28432314,154.54,154.45,0.8930468]
[1748655263737,18.64964886,154.53,154.45,0.8930468]
[1748655264053,26.0,154.49,154.45,0.8930468]
[1748655264234,0.28432314,154.5,154.45,0.8930468]
[1748655264434,26.0,154.49,154.45,0.8930468]
[1748655264652,0.28432314,154.51,154.45,0.8930468]
[1748655265040,29.29119032,154.54,154.45,0.8930468]
[1748655265041,18.933972,154.53,154.45,0.8930468]
[1748655265647,18.933972,154.51,154.45,0.8930468]
[1748655265833,35.92721432,154.63,154.5,45.36946032]
[1748655266034,42.39439191,154.63,154.49,26.0]
[1748655266249,10.0,154.61,154.45,0.6088468]
[1748655266451,18.65547688,154.62,154.45,0.6088468]
[1748655266659,50.0,154.61,154.45,0.6088468]
[1748655266830,6.46717759,154.63,154.45,7.08328282]
[1748655267030,6.46717759,154.63,154.45,13.56698282]
[1748655267258,10.0,154.59,154.45,0.6088468]
[1748655267431,11.38,154.62,154.45,0.6088468]
[1748655267629,10.0,154.58,154.45,0.6088468]
[1748655267835,26.0,154.57,154.45,0.6088468]
[1748655268032,10.84,154.61,154.45,0.6088468]
[1748655268033,26.0,154.53,154.45,0.6088468]
[1748655268236,45.36946032,154.51,154.45,0.6088468]
[1748655268459,26.0,154.5,154.45,0.6088468]
[1748655268629,26.0,154.47,154.45,0.6088468]
[1748655268835,26.0,154.48,154.45,0.6088468]
[1748655269140,71.36946032,154.49,154.45,0.6088468]
[1748655269332,64.01910918,154.46,154.45,0.6088468]
[1748655269541,25.12381692,154.46,154.45,0.6088468]
[1748655270080,18.64964886,154.46,154.45,0.6088468]
[1748655270361,26.0,154.46,154.45,0.6088468]
[1748655270563,71.36946032,154.46,154.45,0.6088468]
[1748655270869,18.64964886,154.45,154.44,0.15630804]
[1748655271028,26.0,154.36,154.26,1.6563]
[1748655271228,26.0,154.36,154.18,6.4837]
[1748655271229,71.36946032,154.32,154.22,6.48414016]
[1748655271433,10.0,154.39,154.26,45.36946032]
[1748655271659,10.0,154.39,154.19,16.21338313]
[1748655271660,6.47920176,154.34,154.19,16.21338313]
[1748655271835,6.47920176,154.34,154.28,0.41223779]
[1748655271836,51.84866208,154.34,154.28,0.41223779]
[1748655272034,6.47920176,154.34,154.28,0.41223779]
[1748655272241,26.0,154.29,154.28,0.41223779]
[1748655272670,18.64964886,154.29,154.28,0.41223779]
[1748655273035,26.0,154.25,154.13,0.9139208]
[1748655273271,26.0,154.21,154.13,0.9139208]
[1748655273575,26.0,154.15,154.13,0.9139208]
[1748655273743,6.48760866,154.14,154.13,0.9139208]
[1748655274072,6.48760866,154.14,154.11,0.1875]
[1748655274073,28.64964886,154.12,154.11,0.1875]
[1748655274291,28.64964886,154.12,153.91,12.2619387]
[1748655274292,18.64964886,154.11,153.91,12.2619387]
[1748655274444,26.0,154.01,153.91,12.2619387]
[1748655274635,6.48,154.03,153.91,12.2619387]
[1748655274937,36.0,153.92,153.91,12.2619387]
[1748655275139,50.0,153.75,153.6,19.511561]
[1748655275362,10.0,153.68,153.48,0.1875]
[1748655275563,10.0,153.67,153.48,0.1875]
[1748655275743,55.36946032,153.6,153.48,0.1875]
[1748655276057,0.31741,153.58,153.48,0.1875]
[1748655276262,76.0,153.53,153.48,0.1875]
[1748655276474,50.0,153.52,153.48,0.1875]
[1748655276648,10.0,153.54,153.22,10.0]
[1748655276958,50.0,153.48,153.23,16.4779]
[1748655277163,10.0,153.42,153.18,0.9139208]
[1748655277371,5.85425874,153.54,153.27,10.0]
[1748655277577,167.26953496,153.66,153.25,10.0]
[1748655277578,50.0,153.45,153.25,10.0]
[1748655277779,6.51805501,153.42,153.32,10.0]
[1748655277947,50.0,153.43,153.36,10.0]
[1748655278145,50.0,153.5,153.49,26.0]
[1748655278345,50.0,153.5,153.47,10.0]
[1748655278346,50.0,153.5,153.44,26.0]
[1748655278562,50.0,153.56,153.38,10.0]
[1748655278773,32.55436689,153.59,153.39,26.0]
[1748655278962,32.55436689,153.59,153.37,1.5544]
[1748655278963,32.55436689,153.59,153.37,11.5544]
[1748655279155,32.55436689,153.59,153.16,0.1875]
[1748655279156,10.0,153.39,153.16,0.1875]
[1748655279358,10.0,153.37,153.16,0.1875]
[1748655279670,93.42,153.44,153.16,0.1875]
[1748655279671,6.52784124,153.19,153.16,0.1875]
[1748655279883,39.12890069,153.34,153.16,0.1875]
[1748655280049,50.0,153.19,153.16,0.1875]
[1748655280245,50.0,153.17,153.16,0.1875]
[1748655280448,50.0,153.23,153.16,0.1875]
[1748655280778,10.0,153.17,153.16,0.1875]
[1748655280958,26.0,153.19,153.16,0.1875]
[1748655281167,10.0,153.18,153.16,0.1875]
[1748655281473,50.0,153.13,153.02,10.0]
[1748655281650,50.0,153.16,153.07,6.53295877]
[1748655281845,50.0,153.25,153.1,10.0]
[1748655282158,50.0,153.28,153.05,6.1099]
[1748655282345,22.82509455,153.34,153.07,10.0]
[1748655282549,22.82509455,153.34,153.0,149.14424015]
[1748655282550,52.26850071,153.27,153.0,149.14424015]
[1748655282762,26.0,153.07,153.0,149.14424015]
[1748655282966,10.27741287,153.1,153.0,149.14424015]
[1748655283169,6.2755,153.26,153.0,149.14424015]
[1748655283170,50.0,153.26,153.01,6.53552055]
[1748655283351,105.43237249,153.34,153.05,10.0]
[1748655283552,50.0,153.1,153.07,26.0]
[1748655283771,32.48389822,153.38,153.18,26.0]
[1748655283772,50.0,153.19,153.18,26.0]
[1748655283973,50.0,153.23,153.2,26.0]
[1748655284271,50.0,153.35,153.14,10.0]
[1748655284441,50.0,153.35,153.22,10.0]
[1748655284649,50.0,153.37,153.21,10.0]
[1748655284945,26.0,153.24,153.09,1.598]
[1748655285170,10.0,153.24,153.0,149.14424015]
[1748655285504,50.0,153.23,153.06,10.0]
[1748655285667,50.0,153.21,153.04,10.0]
[1748655285996,26.0,153.26,153.11,10.0]
[1748655286154,50.0,153.3,153.11,10.0]
[1748655286355,6.52079122,153.36,153.17,10.0]
[1748655286553,50.0,153.39,153.16,36.0]
[1748655286774,32.58399948,153.45,153.17,26.0]
[1748655286775,6.52007152,153.38,153.17,26.0]
[1748655286954,6.51924926,153.4,153.18,36.0]
[1748655287298,10.0,153.39,153.05,120.87553083]
[1748655287457,50.0,153.35,153.06,10.0]
[1748655287783,50.0,153.3,153.21,22.84446183]
[1748655287954,50.0,153.42,153.26,10.0]
[1748655288154,56.51644711,153.46,153.23,26.0]
[1748655288350,6.51644711,153.46,153.29,26.0]
[1748655288558,6.51644711,153.46,153.21,65.47940732]
[1748655288783,50.0,153.45,153.25,36.0]
[1748655288998,6.51576678,153.48,153.31,26.0]
[1748655289284,6.02612574,153.54,153.34,26.0]
[1748655289461,6.51126243,153.59,153.37,26.0]
[1748655289656,50.0,153.58,153.37,26.0]
[1748655289857,50.0,153.62,153.48,52.26850071]
[1748655290076,6.50863301,153.65,153.56,52.26850071]
[1748655290294,6.50863301,153.65,153.46,26.0]
[1748655290295,102.26850071,153.64,153.46,26.0]
[1748655290456,50.0,153.57,153.38,48.81914199]
[1748655290651,52.26850071,153.55,153.38,22.81914199]
[1748655290861,10.27741287,153.66,153.47,26.0]
[1748655291085,50.0,153.67,153.48,26.0]
[1748655291086,6.50781115,153.67,153.48,26.0]
[1748655291403,56.50781115,153.67,153.43,10.0]
[1748655291570,50.0,153.63,153.4,52.26850071]
[1748655291754,52.26850071,153.59,153.44,6.51720542]
[1748655291961,6.50787452,153.66,153.54,52.26850071]
[1748655292375,6.50787452,153.66,153.44,16.51720542]
[1748655292376,102.26850071,153.63,153.44,22.81021897]
[1748655292586,6.50787452,153.66,153.37,26.0]
[1748655292587,50.0,153.58,153.37,26.0]
[1748655292799,26.0,153.51,153.34,22.82509455]
[1748655292969,52.26850071,153.46,153.34,6.52145558]
[1748655293169,26.0,153.49,153.34,6.52145558]
[1748655293170,26.0,153.49,153.42,52.26850071]
[1748655293475,50.0,153.52,153.34,6.52145558]
[1748655293674,26.0,153.5,153.35,10.0]
[1748655293866,26.0,153.52,153.35,36.0]
[1748655294182,26.0,153.52,153.2,52.26850071]
[1748655294183,50.0,153.49,153.21,110.4537]
[1748655294394,50.0,153.45,153.21,110.4537]
[1748655294568,76.0,153.43,153.21,100.4537]
[1748655294900,26.0,153.29,153.23,18.79181043]
[1748655295075,26.0,153.35,153.1,22.86087524]
[1748655295278,50.0,153.32,153.1,22.86087524]
[1748655295472,50.0,153.36,153.2,10.0]
[1748655295780,4.5,153.42,153.31,52.26850071]
[1748655295781,45.599517,153.37,153.31,52.26850071]
[1748655295960,54.5,153.42,153.32,26.0]
[1748655295961,50.0,153.42,153.32,26.0]
[1748655296158,6.80088475,153.46,153.33,18.64964886]
[1748655296159,50.0,153.46,153.33,18.64964886]
[1748655296382,6.5155069,153.48,153.37,52.26850071]
[1748655296589,50.0,153.47,153.33,0.14216157]
[1748655296791,6.51494846,153.5,153.4,52.26850071]
[1748655296960,50.0,153.52,153.43,52.26850071]
[1748655296961,6.51389612,153.52,153.43,52.26850071]
[1748655297165,26.0,153.41,153.31,18.64964886]
[1748655297489,26.0,153.41,152.24,70.1299]
[1748655297490,78.26850071,153.38,153.28,18.64964886]
[1748655297787,26.0,153.35,153.28,18.64964886]
[1748655298010,26.0,153.27,153.15,1.6393]
[1748655298302,60.14216157,153.33,153.16,52.26850071]
[1748655298587,26.0,153.23,153.06,18.65547688]
[1748655298764,50.0,153.12,153.0,149.14424015]
[1748655298958,0.27120815,153.16,153.01,6.53552055]
[1748655299189,26.0,153.14,153.01,6.53552055]
[1748655299392,0.27120815,153.16,153.01,6.53552055]
[1748655299693,0.27120815,153.16,153.01,22.87432193]
[1748655300078,0.27120815,153.16,153.02,18.64964886]
[1748655300281,0.27120815,153.16,153.09,26.0]
[1748655300481,93.86,153.33,153.14,18.64964886]
[1748655300482,143.86,153.33,153.14,18.64964886]
[1748655300782,150.38214687,153.33,153.14,18.64964886]
[1748655300985,26.0,153.21,153.09,18.64964886]
[1748655301285,50.0,153.23,153.08,18.64964886]
[1748655301485,50.0,153.23,153.11,18.64964886]
[1748655301663,100.38214687,153.33,153.13,18.64964886]
[1748655301857,26.0,153.3,153.14,23.13922714]
[1748655302059,26.0,153.27,153.16,0.28432314]
[1748655302582,100.38214687,153.33,153.15,18.79181043]
[1748655302789,50.0,153.36,153.18,26.0]
[1748655302966,56.51993024,153.38,153.15,18.64964886]
[1748655303162,50.0,153.4,153.22,26.0]
[1748655303372,52.26850071,153.37,153.23,18.933972]
[1748655303576,93.9,153.45,153.23,18.933972]
[1748655303577,52.26850071,153.36,153.23,18.933972]
[1748655303766,52.26850071,153.34,153.23,0.28432314]
[1748655303981,52.26850071,153.34,153.25,0.28432314]
[1748655304163,56.51924785,153.4,153.25,18.933972]
[1748655304488,50.0,153.43,153.28,0.28432314]
[1748655304794,93.9,153.45,153.35,70.91814957]
[1748655305095,100.4169545,153.45,153.29,18.64964886]
[1748655305263,50.0,153.42,153.29,52.26850071]
[1748655305469,4.5,153.42,153.36,52.26850071]
[1748655305680,4.5,153.42,153.37,18.64964886]
[1748655305886,52.26850071,153.46,153.34,0.28432314]
[1748655306185,52.26850071,153.53,153.38,0.28432314]
[1748655306407,6.51182632,153.57,153.46,18.64964886]
[1748655306701,6.51182632,153.57,153.42,0.28432314]
[1748655306702,52.26850071,153.58,153.44,0.14216157]
[1748655306864,50.0,153.63,153.44,0.14216157]
[1748655307061,50.0,153.61,153.44,0.14216157]
[1748655307396,50.0,153.64,153.53,18.64964886]
[1748655307587,10.0,153.64,153.39,1.5776]
[1748655307804,105.31714854,153.66,153.4,18.79181043]
[1748655307805,50.0,153.54,153.4,18.79181043]
[1748655308002,62.26850071,153.6,153.42,18.64964886]
[1748655308003,6.51223251,153.56,153.42,18.64964886]
[1748655308198,26.0,153.52,153.32,32.61153143]
[1748655308411,26.0,153.49,153.34,22.82509455]
[1748655308729,52.26850071,153.41,153.34,58.78995629]
[1748655308886,50.0,153.49,153.34,6.52145558]
[1748655309224,26.0,153.49,153.43,52.26850071]